[Event "Early-Titled-Tuesday-Blitz-February-06-2024"]
[Site "Chess.com"]
[Date "2024.02.06"]
[Round "2"]
[White "toninhojit"]
[Black "CarlosjPineror"]
[Result "0-1"]
[WhiteElo "2510"]
[BlackElo "2730"]
[TimeControl "180+1"]
[EndTime "8:17:49 PST"]
[Termination "CarlosjPineror won by checkmate"]

1. d4 {[%clk 0:03:00.9]} 1... Nf6 {[%clk 0:02:59.5]} 2. c4 {[%clk 0:03:00]} 2...
e6 {[%clk 0:02:59.2]} 3. Nf3 {[%clk 0:03:00.3]} 3... Bb4+ {[%clk 0:02:59.1]} 4.
Bd2 {[%clk 0:02:59.8]} 4... Qe7 {[%clk 0:02:59.4]} 5. g3 {[%clk 0:02:59.4]} 5...
O-O {[%clk 0:02:58.6]} 6. Bg2 {[%clk 0:02:59.7]} 6... Bxd2+ {[%clk 0:02:59.1]}
7. Nbxd2 {[%clk 0:02:59.6]} 7... d6 {[%clk 0:03:00]} 8. O-O {[%clk 0:02:59.3]}
8... e5 {[%clk 0:03:00.5]} 9. e4 {[%clk 0:02:54.8]} 9... c6 {[%clk 0:03:00.2]}
10. d5 {[%clk 0:02:53]} 10... Bg4 {[%clk 0:02:59.2]} 11. h3 {[%clk 0:02:51.6]}
11... Bxf3 {[%clk 0:02:56.9]} 12. Bxf3 {[%clk 0:02:48]} 12... a5 {[%clk
0:02:56.2]} 13. b3 {[%clk 0:02:38]} 13... Na6 {[%clk 0:02:56.6]} 14. Nb1 {[%clk
0:02:36.1]} 14... Nc5 {[%clk 0:02:56.1]} 15. Nc3 {[%clk 0:02:36.7]} 15... cxd5
{[%clk 0:02:54]} 16. exd5 {[%clk 0:02:32.2]} 16... e4 {[%clk 0:02:39.9]} 17. Re1
{[%clk 0:02:25.7]} 17... Qe5 {[%clk 0:02:38.8]} 18. Qc2 {[%clk 0:02:20.8]} 18...
Rfe8 {[%clk 0:02:34.6]} 19. Bg2 {[%clk 0:02:16.8]} 19... a4 {[%clk 0:02:02.9]}
20. Rab1 {[%clk 0:02:02]} 20... axb3 {[%clk 0:02:02.1]} 21. axb3 {[%clk
0:02:02.9]} 21... h5 {[%clk 0:01:35.6]} 22. Re3 {[%clk 0:01:59]} 22... h4 {[%clk
0:01:35.6]} 23. g4 {[%clk 0:01:57.8]} 23... Qf4 {[%clk 0:01:08.6]} 24. Ne2
{[%clk 0:01:41.4]} 24... Qg5 {[%clk 0:01:05.2]} 25. Nd4 {[%clk 0:01:39.8]} 25...
Re5 {[%clk 0:01:00.8]} 26. Nf5 {[%clk 0:01:37.6]} 26... Rd8 {[%clk 0:00:57.6]}
27. Ra1 {[%clk 0:01:16.7]} 27... g6 {[%clk 0:00:57.4]} 28. Nd4 {[%clk
0:01:15.9]} 28... Nd3 {[%clk 0:00:47]} 29. Bxe4 {[%clk 0:01:02.8]} 29... Nf4
{[%clk 0:00:45.5]} 30. Bg2 {[%clk 0:00:57.2]} 30... Rxe3 {[%clk 0:00:43]} 31.
fxe3 {[%clk 0:00:57.2]} 31... Nxg2 {[%clk 0:00:43.2]} 32. Kxg2 {[%clk
0:00:57.6]} 32... Qxe3 {[%clk 0:00:43.3]} 33. Qf2 {[%clk 0:00:48]} 33... Qe4+
{[%clk 0:00:39.2]} 34. Nf3 {[%clk 0:00:44.7]} 34... Nd7 {[%clk 0:00:25.7]} 35.
Re1 {[%clk 0:00:44.6]} 35... Qd3 {[%clk 0:00:25.7]} 36. Re3 {[%clk 0:00:44.5]}
36... Qb1 {[%clk 0:00:23.9]} 37. Qxh4 {[%clk 0:00:42.5]} 37... Ra8 {[%clk
0:00:20.3]} 38. Re2 {[%clk 0:00:32.4]} 38... Ra1 {[%clk 0:00:18.8]} 39. Ng5
{[%clk 0:00:25.3]} 39... Qh1+ {[%clk 0:00:17.4]} 40. Kf2 {[%clk 0:00:23.7]}
40... Qf1+ {[%clk 0:00:15.5]} 41. Ke3 {[%clk 0:00:16.3]} 41... Qc1+ {[%clk
0:00:15.1]} 42. Kf3 {[%clk 0:00:14.9]} 42... Qc3+ {[%clk 0:00:15.3]} 43. Kf2
{[%clk 0:00:14.5]} 43... Nf8 {[%clk 0:00:15.3]} 44. Qg3 {[%clk 0:00:11.6]} 44...
Qc1 {[%clk 0:00:14.2]} 45. Qf3 {[%clk 0:00:12.1]} 45... Qg1# {[%clk 0:00:14.1]}
0-1

[Event "Early-Titled-Tuesday-Blitz-February-06-2024"]
[Site "Chess.com"]
[Date "2024.02.06"]
[Round "2"]
[White "FrenchMonster2002"]
[Black "FormerProdigy"]
[Result "0-1"]
[WhiteElo "2398"]
[BlackElo "3022"]
[TimeControl "180+1"]
[EndTime "8:17:49 PST"]
[Termination "FormerProdigy won by resignation"]

1. e4 {[%clk 0:03:00.9]} 1... c6 {[%clk 0:02:59.5]} 2. Nc3 {[%clk 0:02:57.5]}
2... d5 {[%clk 0:03:00.4]} 3. Nf3 {[%clk 0:02:58]} 3... Bg4 {[%clk 0:03:00.2]}
4. h3 {[%clk 0:02:58]} 4... Bh5 {[%clk 0:03:00.7]} 5. exd5 {[%clk 0:02:57.4]}
5... cxd5 {[%clk 0:03:01.6]} 6. g4 {[%clk 0:02:57.9]} 6... Bg6 {[%clk
0:03:01.6]} 7. Bb5+ {[%clk 0:02:58.4]} 7... Nc6 {[%clk 0:03:01.1]} 8. Ne5 {[%clk
0:02:58.7]} 8... Qd6 {[%clk 0:02:57.9]} 9. d4 {[%clk 0:02:54.8]} 9... f6 {[%clk
0:02:54.1]} 10. Nxg6 {[%clk 0:02:44.4]} 10... hxg6 {[%clk 0:02:55]} 11. Qf3
{[%clk 0:02:31.9]} 11... e6 {[%clk 0:02:46.4]} 12. Bf4 {[%clk 0:02:28.6]} 12...
Qd7 {[%clk 0:02:42.1]} 13. O-O-O {[%clk 0:02:27]} 13... g5 {[%clk 0:02:38.7]}
14. Bg3 {[%clk 0:02:24.5]} 14... Bd6 {[%clk 0:02:31.8]} 15. Rhe1 {[%clk
0:01:54]} 15... Nge7 {[%clk 0:02:23.8]} 16. Bxd6 {[%clk 0:01:16.8]} 16... Qxd6
{[%clk 0:02:24.7]} 17. Kb1 {[%clk 0:01:15.5]} 17... Kf7 {[%clk 0:02:16]} 18. Re3
{[%clk 0:01:12]} 18... Ng6 {[%clk 0:02:04.1]} 19. Bxc6 {[%clk 0:00:57.2]} 19...
bxc6 {[%clk 0:01:47.3]} 20. Ne2 {[%clk 0:00:55.8]} 20... a5 {[%clk 0:01:26.4]}
21. Rb3 {[%clk 0:00:52.4]} 21... Rhb8 {[%clk 0:01:25.8]} 22. Rdd3 {[%clk
0:00:43.4]} 22... a4 {[%clk 0:01:24.1]} 23. Rxb8 {[%clk 0:00:43.6]} 23... Rxb8
{[%clk 0:01:25]} 24. a3 {[%clk 0:00:39.4]} 24... c5 {[%clk 0:01:18.1]} 25. dxc5
{[%clk 0:00:37.3]} 25... Qxc5 {[%clk 0:01:19]} 26. Rc3 {[%clk 0:00:18.8]} 26...
Qb5 {[%clk 0:00:29.5]} 27. b4 {[%clk 0:00:15.6]} 27... Ne5 {[%clk 0:00:28]} 28.
Qe3 {[%clk 0:00:12]} 28... Nc4 {[%clk 0:00:27.8]} 29. Qd3 {[%clk 0:00:03.7]}
29... Nxa3+ {[%clk 0:00:18.1]} 30. Rxa3 {[%clk 0:00:03.6]} 30... Qxb4+ {[%clk
0:00:18.7]} 31. Kc1 {[%clk 0:00:02.2]} 31... Qe1+ {[%clk 0:00:18.3]} 32. Qd1
{[%clk 0:00:01.7]} 32... Rb1+ {[%clk 0:00:19.2]} 33. Kxb1 {[%clk 0:00:02.2]}
33... Qxd1+ {[%clk 0:00:20.1]} 34. Nc1 {[%clk 0:00:02.4]} 34... Qf1 {[%clk
0:00:19.6]} 35. Rxa4 {[%clk 0:00:01.7]} 35... Qxf2 {[%clk 0:00:18.7]} 36. Ra3
{[%clk 0:00:02.1]} 36... e5 {[%clk 0:00:17.9]} 37. Nd3 {[%clk 0:00:02]} 37...
Qf1+ {[%clk 0:00:18.3]} 38. Kb2 {[%clk 0:00:02.6]} 38... e4 {[%clk 0:00:18.4]}
39. Ra7+ {[%clk 0:00:02.6]} 39... Kg6 {[%clk 0:00:18]} 40. Nb4 {[%clk
0:00:01.1]} 40... Qb5 {[%clk 0:00:17.2]} 41. Kb3 {[%clk 0:00:01.7]} 41... Qc4+
{[%clk 0:00:16.1]} 42. Ka3 {[%clk 0:00:01.5]} 42... Qc3+ {[%clk 0:00:16]} 43.
Ka4 {[%clk 0:00:02.1]} 43... Qa1+ {[%clk 0:00:16.1]} 0-1

[Event "Early-Titled-Tuesday-Blitz-February-06-2024"]
[Site "Chess.com"]
[Date "2024.02.06"]
[Round "2"]
[White "losersgame"]
[Black "NewYearGirl"]
[Result "1-0"]
[WhiteElo "2532"]
[BlackElo "2336"]
[TimeControl "180+1"]
[EndTime "8:17:49 PST"]
[Termination "losersgame won by resignation"]

1. e4 {[%clk 0:03:00]} 1... c5 {[%clk 0:02:56.1]} 2. Nc3 {[%clk 0:02:59.5]} 2...
g6 {[%clk 0:02:55.7]} 3. h4 {[%clk 0:02:53.6]} 3... Bg7 {[%clk 0:02:52]} 4. h5
{[%clk 0:02:53.5]} 4... Nc6 {[%clk 0:02:52.1]} 5. d3 {[%clk 0:02:51.5]} 5... d6
{[%clk 0:02:36.5]} 6. g3 {[%clk 0:02:23.4]} 6... Nd4 {[%clk 0:02:23.2]} 7. Bg2
{[%clk 0:02:17.9]} 7... Nf6 {[%clk 0:02:18.4]} 8. h6 {[%clk 0:02:17.4]} 8... Bf8
{[%clk 0:02:19.1]} 9. Nce2 {[%clk 0:02:16.3]} 9... e5 {[%clk 0:02:14.1]} 10. c3
{[%clk 0:02:15.8]} 10... Nc6 {[%clk 0:02:12.4]} 11. Bg5 {[%clk 0:02:09.1]} 11...
Be7 {[%clk 0:02:12.2]} 12. Nf3 {[%clk 0:02:02]} 12... Bg4 {[%clk 0:02:09]} 13.
Qb3 {[%clk 0:01:58.1]} 13... Na5 {[%clk 0:02:02.7]} 14. Qa4+ {[%clk 0:01:56.3]}
14... Bd7 {[%clk 0:02:02.6]} 15. Qc2 {[%clk 0:01:56.3]} 15... b5 {[%clk
0:02:00]} 16. Rd1 {[%clk 0:01:40.2]} 16... Nc6 {[%clk 0:01:55.6]} 17. d4 {[%clk
0:01:25.7]} 17... cxd4 {[%clk 0:01:51.6]} 18. cxd4 {[%clk 0:01:25.5]} 18... Rc8
{[%clk 0:01:51.3]} 19. Qb1 {[%clk 0:01:24.5]} 19... Qa5+ {[%clk 0:01:41.1]} 20.
Bd2 {[%clk 0:01:22.4]} 20... Qb6 {[%clk 0:01:40.1]} 21. O-O {[%clk 0:00:59.2]}
21... Ng4 {[%clk 0:01:36.4]} 22. dxe5 {[%clk 0:00:44.4]} 22... dxe5 {[%clk
0:01:34.9]} 23. Nc3 {[%clk 0:00:44.9]} 23... Bc5 {[%clk 0:01:31.1]} 24. Be1
{[%clk 0:00:41.3]} 24... Ne7 {[%clk 0:01:26.1]} 25. b4 {[%clk 0:00:32.6]} 25...
Bd4 {[%clk 0:01:20.1]} 26. Nxd4 {[%clk 0:00:27.9]} 26... exd4 {[%clk 0:01:20.6]}
27. Ne2 {[%clk 0:00:18.2]} 27... Rc4 {[%clk 0:01:18.8]} 28. Qb2 {[%clk
0:00:15.6]} 28... Nc6 {[%clk 0:01:14.7]} 29. Nf4 {[%clk 0:00:15]} 29... Be6
{[%clk 0:01:09]} 30. Nd5 {[%clk 0:00:12.2]} 30... Bxd5 {[%clk 0:01:04.8]} 31.
exd5 {[%clk 0:00:13.1]} 31... Nce5 {[%clk 0:01:05.5]} 32. f4 {[%clk 0:00:11.7]}
32... d3+ {[%clk 0:00:58.3]} 33. Kh1 {[%clk 0:00:12]} 33... Ne3 {[%clk
0:00:49.1]} 34. Qxe5+ {[%clk 0:00:10.7]} 34... Kd7 {[%clk 0:00:49.7]} 35. Rxd3
{[%clk 0:00:07.6]} 35... Nxf1 {[%clk 0:00:49.1]} 36. Qxh8 {[%clk 0:00:05]} 36...
Rc1 {[%clk 0:00:45.9]} 37. Qe5 {[%clk 0:00:02.7]} 37... Nxg3+ {[%clk 0:00:26.9]}
38. Rxg3 {[%clk 0:00:02.2]} 38... Qf2 {[%clk 0:00:27.3]} 39. Bh3+ {[%clk
0:00:02.3]} 39... Kd8 {[%clk 0:00:25.4]} 40. Qf6+ {[%clk 0:00:02.1]} 40... Kc7
{[%clk 0:00:24.8]} 41. Rc3+ {[%clk 0:00:02.8]} 41... Kb8 {[%clk 0:00:19]} 42.
Rxc1 {[%clk 0:00:02.8]} 42... Qf3+ {[%clk 0:00:18]} 43. Bg2 {[%clk 0:00:03.1]}
43... Qh5+ {[%clk 0:00:18.3]} 44. Kg1 {[%clk 0:00:02.9]} 1-0

[Event "Early-Titled-Tuesday-Blitz-February-06-2024"]
[Site "Chess.com"]
[Date "2024.02.06"]
[Round "2"]
[White "NovozhilovSemen"]
[Black "GMWSO"]
[Result "1-0"]
[WhiteElo "2685"]
[BlackElo "3079"]
[TimeControl "180+1"]
[EndTime "8:17:50 PST"]
[Termination "NovozhilovSemen won on time"]

1. d4 {[%clk 0:03:00.9]} 1... d5 {[%clk 0:02:55.4]} 2. c4 {[%clk 0:03:00.6]}
2... c6 {[%clk 0:02:55.9]} 3. cxd5 {[%clk 0:03:00.1]} 3... cxd5 {[%clk
0:02:56.8]} 4. Bg5 {[%clk 0:03:00.1]} 4... h6 {[%clk 0:02:55.1]} 5. Bh4 {[%clk
0:03:00.2]} 5... Qb6 {[%clk 0:02:39.8]} 6. Qd2 {[%clk 0:02:56.3]} 6... Nc6
{[%clk 0:02:38.3]} 7. e3 {[%clk 0:02:56]} 7... Bf5 {[%clk 0:02:31.4]} 8. Nc3
{[%clk 0:02:54.2]} 8... e6 {[%clk 0:02:31.6]} 9. f3 {[%clk 0:02:52]} 9... Be7
{[%clk 0:02:28.2]} 10. Bf2 {[%clk 0:02:51.8]} 10... Nf6 {[%clk 0:02:24.9]} 11.
e4 {[%clk 0:02:34.1]} 11... Bh7 {[%clk 0:02:18]} 12. Bd3 {[%clk 0:02:33.1]}
12... dxe4 {[%clk 0:02:14.7]} 13. fxe4 {[%clk 0:02:30]} 13... Ng4 {[%clk
0:02:08.2]} 14. Nf3 {[%clk 0:02:13.7]} 14... Nxf2 {[%clk 0:02:07.7]} 15. Qxf2
{[%clk 0:02:13.1]} 15... O-O {[%clk 0:02:06.8]} 16. Rd1 {[%clk 0:01:56.7]} 16...
Rad8 {[%clk 0:02:04]} 17. Bb1 {[%clk 0:01:55.3]} 17... Nxd4 {[%clk 0:01:56.6]}
18. Nxd4 {[%clk 0:01:10.3]} 18... Bc5 {[%clk 0:01:56.1]} 19. Nce2 {[%clk
0:00:55]} 19... Qb4+ {[%clk 0:01:49.3]} 20. Rd2 {[%clk 0:00:47.9]} 20... e5
{[%clk 0:01:42.1]} 21. a3 {[%clk 0:00:41.3]} 21... Qb6 {[%clk 0:01:39.5]} 22. b4
{[%clk 0:00:40.9]} 22... exd4 {[%clk 0:01:32.9]} 23. O-O {[%clk 0:00:28.7]}
23... Be7 {[%clk 0:01:32.6]} 24. Rxd4 {[%clk 0:00:27.1]} 24... a5 {[%clk
0:01:27.2]} 25. Rxd8 {[%clk 0:00:21]} 25... Qxf2+ {[%clk 0:01:26.2]} 26. Kxf2
{[%clk 0:00:21.9]} 26... Rxd8 {[%clk 0:01:26.7]} 27. bxa5 {[%clk 0:00:22.8]}
27... Bxa3 {[%clk 0:01:23.4]} 28. Nf4 {[%clk 0:00:22.3]} 28... Ra8 {[%clk
0:01:13.8]} 29. Rd1 {[%clk 0:00:19.7]} 29... Rxa5 {[%clk 0:01:09.9]} 30. Rd8+
{[%clk 0:00:19.6]} 30... Bf8 {[%clk 0:01:10.3]} 31. Nd5 {[%clk 0:00:20.5]} 31...
g5 {[%clk 0:00:55.5]} 32. Nf6+ {[%clk 0:00:16.6]} 32... Kg7 {[%clk 0:00:55.8]}
33. Ne8+ {[%clk 0:00:17.1]} 33... Kh8 {[%clk 0:00:51.2]} 34. Nf6 {[%clk
0:00:17.1]} 34... Ra1 {[%clk 0:00:38.4]} 35. Bd3 {[%clk 0:00:17]} 35... Ra3
{[%clk 0:00:33]} 36. Ke2 {[%clk 0:00:14.7]} 36... Kg7 {[%clk 0:00:30.7]} 37.
Ne8+ {[%clk 0:00:14.6]} 37... Kg8 {[%clk 0:00:29.4]} 38. Nf6+ {[%clk 0:00:14.6]}
38... Kg7 {[%clk 0:00:29.8]} 39. Ne8+ {[%clk 0:00:12.6]} 1-0

[Event "Early-Titled-Tuesday-Blitz-February-06-2024"]
[Site "Chess.com"]
[Date "2024.02.06"]
[Round "2"]
[White "Baronessa08"]
[Black "laskakid"]
[Result "0-1"]
[WhiteElo "2510"]
[BlackElo "2349"]
[TimeControl "180+1"]
[EndTime "8:17:50 PST"]
[Termination "laskakid won on time"]

1. e4 {[%clk 0:03:00.9]} 1... e5 {[%clk 0:03:00.1]} 2. g3 {[%clk 0:02:52.2]}
2... Nf6 {[%clk 0:02:56.9]} 3. Bg2 {[%clk 0:02:50.7]} 3... Nc6 {[%clk
0:02:52.2]} 4. d3 {[%clk 0:02:40.7]} 4... g6 {[%clk 0:02:49.8]} 5. f4 {[%clk
0:02:39.3]} 5... d6 {[%clk 0:02:45.8]} 6. Nf3 {[%clk 0:02:36.7]} 6... Bg7 {[%clk
0:02:45.8]} 7. O-O {[%clk 0:02:34.8]} 7... O-O {[%clk 0:02:45.3]} 8. c3 {[%clk
0:02:27.7]} 8... h6 {[%clk 0:02:42.3]} 9. Kh1 {[%clk 0:02:27.5]} 9... Re8 {[%clk
0:02:38.5]} 10. Be3 {[%clk 0:02:26.3]} 10... d5 {[%clk 0:02:22.7]} 11. fxe5
{[%clk 0:02:16]} 11... Ng4 {[%clk 0:02:12.6]} 12. Bg1 {[%clk 0:02:13.4]} 12...
dxe4 {[%clk 0:02:09.9]} 13. dxe4 {[%clk 0:02:11]} 13... Qxd1 {[%clk 0:02:03.6]}
14. Rxd1 {[%clk 0:02:11.7]} 14... Ncxe5 {[%clk 0:01:57.2]} 15. Nxe5 {[%clk
0:02:10.8]} 15... Nxe5 {[%clk 0:01:55.3]} 16. Na3 {[%clk 0:02:06]} 16... Bg4
{[%clk 0:01:53.4]} 17. Rf1 {[%clk 0:01:50.5]} 17... c6 {[%clk 0:01:49]} 18. h3
{[%clk 0:01:45.3]} 18... Be6 {[%clk 0:01:48.1]} 19. Rfd1 {[%clk 0:01:38.1]}
19... b6 {[%clk 0:01:34.8]} 20. Nc2 {[%clk 0:01:30]} 20... Rad8 {[%clk
0:01:32.2]} 21. Nd4 {[%clk 0:01:26.1]} 21... Bc8 {[%clk 0:01:27.8]} 22. Kh2
{[%clk 0:01:21.6]} 22... Bb7 {[%clk 0:01:26.6]} 23. b3 {[%clk 0:01:13.8]} 23...
a6 {[%clk 0:01:18.2]} 24. Rac1 {[%clk 0:00:51.9]} 24... c5 {[%clk 0:01:14.7]}
25. Ne2 {[%clk 0:00:52.1]} 25... Nd3 {[%clk 0:01:11.7]} 26. Rc2 {[%clk
0:00:49.5]} 26... Bxe4 {[%clk 0:01:06.4]} 27. Bxe4 {[%clk 0:00:46.2]} 27... Rxe4
{[%clk 0:01:06.5]} 28. Rcd2 {[%clk 0:00:45.2]} 28... Rde8 {[%clk 0:01:04.1]} 29.
Rxd3 {[%clk 0:00:24.8]} 29... Rxe2+ {[%clk 0:01:03.5]} 30. Kh1 {[%clk
0:00:25.2]} 30... Rxa2 {[%clk 0:01:01]} 31. Rd8 {[%clk 0:00:24.6]} 31... Rxd8
{[%clk 0:00:52.5]} 32. Rxd8+ {[%clk 0:00:24.5]} 32... Kh7 {[%clk 0:00:52.9]} 33.
Rb8 {[%clk 0:00:20.2]} 33... Bxc3 {[%clk 0:00:46.2]} 34. Rxb6 {[%clk 0:00:12.1]}
34... Bd4 {[%clk 0:00:43.8]} 35. Bxd4 {[%clk 0:00:10.2]} 35... cxd4 {[%clk
0:00:44]} 36. Rd6 {[%clk 0:00:10.3]} 36... Rd2 {[%clk 0:00:41]} 37. Rxa6 {[%clk
0:00:07.9]} 37... Rd3 {[%clk 0:00:39.2]} 38. Kg2 {[%clk 0:00:07.8]} 38... Rxb3
{[%clk 0:00:38.9]} 39. Rd6 {[%clk 0:00:07.6]} 39... Rd3 {[%clk 0:00:36.2]} 40.
h4 {[%clk 0:00:07.3]} 40... Kg7 {[%clk 0:00:34.4]} 41. Kh3 {[%clk 0:00:07.5]}
41... h5 {[%clk 0:00:29.6]} 42. Kg2 {[%clk 0:00:06.2]} 42... Kf8 {[%clk
0:00:29.4]} 43. Kh3 {[%clk 0:00:01.7]} 43... Ke7 {[%clk 0:00:29.4]} 0-1

[Event "Early-Titled-Tuesday-Blitz-February-06-2024"]
[Site "Chess.com"]
[Date "2024.02.06"]
[Round "2"]
[White "Elnaz_Kaliakhmet"]
[Black "wyharga"]
[Result "1/2-1/2"]
[WhiteElo "2172"]
[BlackElo "2395"]
[TimeControl "180+1"]
[EndTime "8:17:50 PST"]
[Termination "Game drawn by repetition"]

1. d4 {[%clk 0:02:54.9]} 1... d5 {[%clk 0:02:59.2]} 2. c4 {[%clk 0:02:53]} 2...
e6 {[%clk 0:02:59.3]} 3. Nf3 {[%clk 0:02:52.9]} 3... Nf6 {[%clk 0:02:59.2]} 4.
Nc3 {[%clk 0:02:53.5]} 4... Be7 {[%clk 0:02:59.1]} 5. g3 {[%clk 0:02:53.2]} 5...
O-O {[%clk 0:02:58.3]} 6. Bg2 {[%clk 0:02:53.4]} 6... c6 {[%clk 0:02:54]} 7. O-O
{[%clk 0:02:50.6]} 7... b6 {[%clk 0:02:54.4]} 8. Nd2 {[%clk 0:02:31.1]} 8... Bb7
{[%clk 0:02:27.7]} 9. e4 {[%clk 0:02:29.1]} 9... Na6 {[%clk 0:02:25]} 10. e5
{[%clk 0:02:26.6]} 10... Nd7 {[%clk 0:02:20.7]} 11. b3 {[%clk 0:02:19.2]} 11...
Nc7 {[%clk 0:02:18.8]} 12. a4 {[%clk 0:02:16.1]} 12... c5 {[%clk 0:02:11.8]} 13.
Nf3 {[%clk 0:01:58.4]} 13... dxc4 {[%clk 0:02:02]} 14. bxc4 {[%clk 0:01:54.9]}
14... cxd4 {[%clk 0:02:02.1]} 15. Qxd4 {[%clk 0:01:54]} 15... Nc5 {[%clk
0:02:01.3]} 16. Qg4 {[%clk 0:01:51.1]} 16... Qd3 {[%clk 0:01:55.2]} 17. Nb5
{[%clk 0:01:32.2]} 17... Nxb5 {[%clk 0:01:49.9]} 18. axb5 {[%clk 0:01:32.5]}
18... Rfd8 {[%clk 0:01:41.4]} 19. Be3 {[%clk 0:01:26.6]} 19... Rd7 {[%clk
0:01:15.6]} 20. h4 {[%clk 0:01:26.9]} 20... Qg6 {[%clk 0:01:12.1]} 21. Qxg6
{[%clk 0:01:18.2]} 21... hxg6 {[%clk 0:01:11.8]} 22. Rfd1 {[%clk 0:01:18]} 22...
Rxd1+ {[%clk 0:01:05.9]} 23. Rxd1 {[%clk 0:01:18.9]} 23... a5 {[%clk 0:00:59.7]}
24. bxa6 {[%clk 0:01:17.3]} 24... Bxa6 {[%clk 0:00:46.3]} 25. Rb1 {[%clk
0:01:13.8]} 25... Bxc4 {[%clk 0:00:35.5]} 26. Rxb6 {[%clk 0:01:13.3]} 26... Bd5
{[%clk 0:00:34.8]} 27. Nd4 {[%clk 0:01:01.1]} 27... Bxg2 {[%clk 0:00:34.2]} 28.
Kxg2 {[%clk 0:01:02]} 28... Nd3 {[%clk 0:00:31.3]} 29. Nc6 {[%clk 0:01:01]}
29... Bf8 {[%clk 0:00:28.5]} 30. Rb3 {[%clk 0:00:57.2]} 30... Nc5 {[%clk
0:00:25.1]} 31. Rc3 {[%clk 0:00:53.5]} 31... Nd7 {[%clk 0:00:23.4]} 32. Rd3
{[%clk 0:00:52.4]} 32... Nc5 {[%clk 0:00:23.7]} 33. Rc3 {[%clk 0:00:52.2]} 33...
Nd7 {[%clk 0:00:20.5]} 34. f4 {[%clk 0:00:48.9]} 34... f6 {[%clk 0:00:19.2]} 35.
Bd4 {[%clk 0:00:45.3]} 35... fxe5 {[%clk 0:00:17.5]} 36. Nxe5 {[%clk 0:00:43.4]}
36... Nxe5 {[%clk 0:00:17.6]} 37. Bxe5 {[%clk 0:00:44.3]} 37... Ra7 {[%clk
0:00:17.7]} 38. Kf3 {[%clk 0:00:38.7]} 38... Ra3 {[%clk 0:00:16.9]} 39. Ke4
{[%clk 0:00:34.4]} 39... Rxc3 {[%clk 0:00:15.9]} 40. Bxc3 {[%clk 0:00:35.3]}
40... Kf7 {[%clk 0:00:16]} 41. Ke5 {[%clk 0:00:35.8]} 41... Bc5 {[%clk
0:00:16.3]} 42. Be1 {[%clk 0:00:34.3]} 42... Ba3 {[%clk 0:00:16.2]} 43. Ke4
{[%clk 0:00:34.3]} 43... Bb2 {[%clk 0:00:16.2]} 44. g4 {[%clk 0:00:34.2]} 44...
Bc1 {[%clk 0:00:16]} 45. Bf2 {[%clk 0:00:33.8]} 45... Bb2 {[%clk 0:00:15.7]} 46.
Bd4 {[%clk 0:00:33.7]} 46... Bc1 {[%clk 0:00:15.4]} 47. Be5 {[%clk 0:00:33.5]}
47... Bd2 {[%clk 0:00:15.2]} 48. h5 {[%clk 0:00:29.9]} 48... gxh5 {[%clk
0:00:14.6]} 49. gxh5 {[%clk 0:00:30.8]} 49... Be1 {[%clk 0:00:14.4]} 50. f5
{[%clk 0:00:30.8]} 50... exf5+ {[%clk 0:00:14.2]} 51. Kxf5 {[%clk 0:00:31.2]}
51... Bd2 {[%clk 0:00:14.4]} 52. Bf4 {[%clk 0:00:30.6]} 52... Bc3 {[%clk
0:00:14.4]} 53. Bg5 {[%clk 0:00:30.5]} 53... Bd4 {[%clk 0:00:14.3]} 54. Bf4
{[%clk 0:00:30.7]} 54... Bc3 {[%clk 0:00:14.5]} 55. Bg5 {[%clk 0:00:31.2]} 55...
Bd4 {[%clk 0:00:14.7]} 56. Bf4 {[%clk 0:00:31.8]} 56... Bc3 {[%clk 0:00:15.1]}
1/2-1/2

[Event "Early-Titled-Tuesday-Blitz-February-06-2024"]
[Site "Chess.com"]
[Date "2024.02.06"]
[Round "2"]
[White "Quattroporte300"]
[Black "Binary010"]
[Result "0-1"]
[WhiteElo "2393"]
[BlackElo "2876"]
[TimeControl "180+1"]
[EndTime "8:17:53 PST"]
[Termination "Binary010 won on time"]

1. e4 {[%clk 0:03:00.9]} 1... a6 {[%clk 0:02:58.6]} 2. d4 {[%clk 0:02:59.1]}
2... e6 {[%clk 0:02:57.4]} 3. Bd3 {[%clk 0:02:59.4]} 3... c5 {[%clk 0:02:54.9]}
4. d5 {[%clk 0:02:53.7]} 4... exd5 {[%clk 0:02:49.3]} 5. exd5 {[%clk 0:02:53.1]}
5... d6 {[%clk 0:02:49.9]} 6. c4 {[%clk 0:02:52.4]} 6... Be7 {[%clk 0:02:50]} 7.
Nf3 {[%clk 0:02:52.8]} 7... Nf6 {[%clk 0:02:49.5]} 8. O-O {[%clk 0:02:53.5]}
8... O-O {[%clk 0:02:49.8]} 9. Nc3 {[%clk 0:02:54.1]} 9... Bg4 {[%clk
0:02:48.2]} 10. h3 {[%clk 0:02:54]} 10... Bh5 {[%clk 0:02:47.4]} 11. Re1 {[%clk
0:02:50.2]} 11... Nbd7 {[%clk 0:02:47.3]} 12. Bf4 {[%clk 0:02:47.3]} 12... Re8
{[%clk 0:02:45.2]} 13. g4 {[%clk 0:02:36.9]} 13... Bg6 {[%clk 0:02:44.7]} 14.
Kg2 {[%clk 0:02:21.9]} 14... Nf8 {[%clk 0:02:26.6]} 15. Bf1 {[%clk 0:02:11]}
15... h5 {[%clk 0:02:17.9]} 16. g5 {[%clk 0:02:08.7]} 16... N6h7 {[%clk
0:02:17.7]} 17. h4 {[%clk 0:02:08.7]} 17... Bf5 {[%clk 0:01:55.4]} 18. Bg3
{[%clk 0:01:57.7]} 18... f6 {[%clk 0:01:37.7]} 19. Bd3 {[%clk 0:01:15.4]} 19...
Bxd3 {[%clk 0:01:29.9]} 20. Qxd3 {[%clk 0:01:14.9]} 20... fxg5 {[%clk
0:01:30.6]} 21. hxg5 {[%clk 0:01:14.1]} 21... Nxg5 {[%clk 0:00:42.9]} 22. Nxg5
{[%clk 0:00:55.4]} 22... Bxg5 {[%clk 0:00:43.8]} 23. Rxe8 {[%clk 0:00:55.4]}
23... Qxe8 {[%clk 0:00:44.7]} 24. Bxd6 {[%clk 0:00:54]} 24... Ng6 {[%clk
0:00:38.6]} 25. Ne4 {[%clk 0:00:47.7]} 25... Bf4 {[%clk 0:00:33.5]} 26. Re1
{[%clk 0:00:42.2]} 26... Qd8 {[%clk 0:00:11.4]} 27. Bxc5 {[%clk 0:00:35.6]}
27... Rc8 {[%clk 0:00:04.8]} 28. Be3 {[%clk 0:00:32.5]} 28... Ne5 {[%clk
0:00:04.4]} 29. Qe2 {[%clk 0:00:28.9]} 29... Bxe3 {[%clk 0:00:04.4]} 30. fxe3
{[%clk 0:00:20.4]} 30... Nxc4 {[%clk 0:00:04.7]} 31. Qxh5 {[%clk 0:00:20.5]}
31... Nb6 {[%clk 0:00:03.5]} 32. Rh1 {[%clk 0:00:19.9]} 32... Qxd5 {[%clk
0:00:03.2]} 33. Qh7+ {[%clk 0:00:11.5]} 33... Kf7 {[%clk 0:00:03.4]} 34. Rf1+
{[%clk 0:00:12.2]} 34... Ke8 {[%clk 0:00:03]} 35. Qh8+ {[%clk 0:00:10.8]} 35...
Kd7 {[%clk 0:00:03.2]} 36. Qxg7+ {[%clk 0:00:11.5]} 36... Kc6 {[%clk 0:00:03.3]}
37. Rc1+ {[%clk 0:00:07.2]} 37... Kb5 {[%clk 0:00:03.7]} 38. a4+ {[%clk
0:00:03.2]} 38... Kxa4 {[%clk 0:00:03.3]} 39. Ra1+ {[%clk 0:00:03.6]} 39... Kb5
{[%clk 0:00:03.1]} 40. Qg4 {[%clk 0:00:01.9]} 40... Rc4 {[%clk 0:00:02.8]} 0-1